bitfinex-derivatives/quotes_ETHF0:USTF0_20250518
["timestamp","ask_amount","ask_price","bid_price","bid_amount"]
[1747547868631,0.79572,2512.7,2512.4,0.79578]
[1747547869027,2.16066,2512.6,2512.3,0.79583]
[1747547870335,2.16066,2512.6,2512.3,3.85383]
[1747547870535,0.79579,2512.5,2512.3,3.058]
[1747547870834,1.3649,2512.4,2512.3,3.058]
[1747547871330,2.1607,2512.4,2512.3,3.058]
[1747547871538,1.3649,2512.4,2512.3,3.058]
[1747547872335,1.3649,2512.4,2512.2,0.79584]
[1747547872528,2.16071,2512.4,2512.1,1.39838003]
[1747547872725,1.3649,2512.4,2512.2,0.79586]
[1747547872930,2.1607,2512.4,2512.2,0.79586]
[1747547873133,2.1607,2512.4,2512.1,1.3062]
[1747547873134,1.3649,2512.4,2512.3,0.79583]
[1747547874137,1.3649,2512.4,2512.3,3.85383]
[1747547875027,1.3649,2512.4,2512.3,3.058]
[1747547875737,2.1607,2512.4,2512.3,3.058]
[1747547875926,2.7988,2512.4,2512.3,2.9365]
[1747547876132,0.79585,2512.3,2512.0,4.00371]
[1747547876431,1.2509,2512.2,2512.1,0.7959]
[1747547876631,1.2509,2512.2,2512.1,2.1144]
[1747547878231,1.2509,2512.2,2512.1,0.7959]
[1747547878432,2.72047,2512.2,2512.0,6.2658]
[1747547878729,0.7959,2512.1,2512.0,6.2658]
[1747547878929,1.3724,2512.1,2512.0,7.06173]
[1747547879129,0.6737,2512.2,2512.0,7.06173]
[1747547879330,1.46957,2512.2,2512.0,7.06173]
[1747547879539,1.46957,2512.2,2512.1,1.2737]
[1747547879744,0.7959,2512.1,2512.0,6.2658]
[1747547879941,2.1683,2512.1,2512.0,6.2658]
[1747547881233,2.1683,2512.1,2512.0,3.2078]
[1747547882645,2.1683,2512.1,2511.5,13.24088]
[1747547882646,1.3724,2512.1,2511.5,13.24088]
[1747547882943,0.79606,2511.6,2511.5,3.2078]
[1747547883137,3.2078,2511.7,2511.2,2.42239826]
[1747547883337,1.2665,2511.5,2511.2,2.42239826]
[1747547883637,1.2665,2511.5,2511.3,2.04713]
[1747547883837,1.2665,2511.5,2511.4,0.79612]
[1747547884043,1.2665,2511.5,2511.4,1.3673]
[1747547884237,1.2665,2511.5,2511.4,2.16342]
[1747547884638,1.2665,2511.5,2511.4,1.3673]
[1747547885044,1.2665,2511.5,2511.4,2.16342]
[1747547885237,1.2665,2511.5,2511.2,0.79617]
[1747547885438,1.2665,2511.5,2511.3,0.79614]
[1747547885641,1.2665,2511.5,2511.3,2.16344]
[1747547885842,1.2665,2511.5,2511.4,0.79612]
[1747547886042,1.2665,2511.5,2511.4,1.3673]
[1747547887342,0.6843,2511.6,2511.4,2.16341]
[1747547887846,0.6843,2511.6,2511.4,1.3673]
[1747547888038,1.9643,2511.6,2511.4,2.16341]
[1747547888241,1.9643,2511.6,2511.4,5.22141]
[1747547888439,2.76037,2511.6,2511.4,5.22142]
[1747547888645,1.9643,2511.6,2511.4,5.22142]
[1747547889350,1.9643,2511.6,2511.4,5.2214]
[1747547890046,1.9643,2511.6,2511.5,0.79609]
[1747547890246,1.9643,2511.6,2511.5,1.3317]
[1747547890649,0.79609,2511.5,2511.4,3.058]
[1747547890849,2.05269,2511.5,2511.4,3.058]
[1747547891252,0.79612,2511.4,2511.2,4.00397]
[1747547891549,0.6843,2511.6,2511.3,0.79614]
[1747547891749,1.2566,2511.5,2511.3,2.12784]
[1747547892350,2.05269,2511.5,2511.2,4.00396]
[1747547892653,2.05269,2511.5,2511.2,3.2078]
[1747547892654,0.79613,2511.4,2511.2,3.2078]
[1747547892849,1.2605,2511.3,2511.2,3.2078]
[1747547893049,1.2605,2511.3,2511.2,4.00398]
[1747547894757,1.2605,2511.3,2511.2,3.2078]
[1747547894958,1.2605,2511.3,2511.2,4.00398]
[1747547902257,1.2605,2511.3,2511.2,5.18226539]
[1747547903461,5.26445,2511.3,2511.2,1.17828539]
[1747547903656,2.05665,2511.3,2511.2,1.17828539]
[1747547904455,10.2085,2511.3,2511.2,1.17828539]
[1747547904655,1.2605,2511.3,2511.2,1.17828539]
[1747547905051,1.2605,2511.3,2511.2,2.54228539]
[1747547905262,1.2605,2511.3,2511.2,1.364]
[1747547907654,1.2605,2511.3,2511.2,2.16018]
[1747547907963,0.7961,2511.5,2511.2,2.16018]
[1747547908158,9.6323,2511.6,2511.3,1.3371]
[1747547908359,2.10732,2511.4,2511.3,1.3371]
[1747547908966,1.3112,2511.4,2511.3,1.3371]
[1747547909363,0.6669,2511.5,2511.3,1.3371]
[1747547909556,1.9781,2511.5,2511.3,2.13324]
[1747547909959,2.77419,2511.5,2511.3,1.3371]
[1747547910261,2.77419,2511.5,2511.3,4.3951]
[1747547911162,2.77419,2511.5,2511.3,1.3371]
[1747547911352,2.77419,2511.5,2511.3,2.13325]
[1747547911760,1.9781,2511.5,2511.3,2.13325]
[1747547911963,1.9781,2511.5,2511.3,1.3371]
[1747547912264,1.9781,2511.5,2511.3,5.19123]
[1747547913164,2.7742,2511.5,2511.3,2.13323]
[1747547913365,1.9781,2511.5,2511.3,2.13323]
[1747547914167,1.9781,2511.5,2511.3,5.19123]
[1747547914965,1.9781,2511.5,2511.3,4.3951]
[1747547915260,1.9781,2511.5,2511.3,2.13324]
[1747547915466,1.9781,2511.5,2511.4,0.79612]
[1747547916473,0.6843,2511.6,2511.5,0.79609]
[1747547917058,0.6843,2511.6,2511.5,2.13209]
[1747547917466,18.44392,2512.1,2511.5,4.5438]
[1747547917660,1.46998,2512.2,2511.9,0.79594]
[1747547918169,2.1003,2512.1,2511.8,0.79598]
[1747547918360,1.3044,2512.1,2511.9,0.79596]
[1747547918561,1.3044,2512.1,2512.0,2.13193]
[1747547919267,1.3044,2512.1,2512.0,1.336]
[1747547919563,0.6728,2512.3,2512.0,1.336]
[1747547919768,1.9772,2512.3,2512.1,0.79588]
[1747547920561,0.6316,2512.6,2512.1,3.2078]
[1747547920756,4.85686275,2512.8,2512.2,1.3742]
[1747547920960,1.64906275,2512.8,2512.7,0.79571]
[1747547921157,0.79571,2512.7,2512.5,8.796]
[1747547921363,2.14371,2512.7,2512.5,8.796]
[1747547921571,1.348,2512.7,2512.5,0.79576]
[1747547921764,1.348,2512.7,2512.4,3.2078]
[1747547921963,0.79577,2512.5,2512.2,2.17006]
[1747547922164,2.005,2512.4,2512.2,2.17006]
[1747547922365,2.005,2512.4,2512.0,3.2078]
[1747547922565,0.6652,2512.3,2512.1,0.7959]
[1747547922872,0.657,2512.4,2512.3,0.79584]
[1747547923061,2.005,2512.4,2512.3,0.79584]
[1747547924265,2.005,2512.4,2512.2,0.79585]
[1747547924465,2.005,2512.4,2512.3,0.79584]
[1747547924667,2.005,2512.4,2512.2,0.79585]
[1747547926271,2.005,2512.4,2512.3,0.79584]
[1747547929375,2.005,2512.4,2512.2,2.15725]
[1747547929967,2.80082,2512.4,2512.1,0.7959]
[1747547930568,2.005,2512.4,2512.2,0.79585]
[1747547932473,3.2078,2512.8,2512.1,1.98976]
[1747547932778,1.9329,2512.7,2512.5,0.79574]
[1747547932976,1.9329,2512.7,2512.6,0.79574]
[1747547937781,3.2078,2512.8,2512.7,0.79571]
[1747547937980,2.0359,2513.0,2512.9,0.79565]
[1747547938280,3.2078,2513.2,2513.1,0.79558]
[1747547938781,2.6889,2513.5,2513.4,0.79549]
[1747547939175,2.0359,2513.5,2513.4,0.79549]
[1747547939373,7.78421839,2513.9,2513.6,0.79543]
[1747547939672,1.9339,2513.8,2513.6,0.79543]
[1747547940176,6.76510626,2513.7,2513.6,0.79543]
[1747547940379,5.51110626,2513.7,2513.6,0.79543]
[1747547940776,5.51110626,2513.7,2513.2,18.22752]
[1747547940974,3.2078,2513.4,2513.3,0.79551]
[1747547941279,2.5395,2513.6,2513.0,0.79562]
[1747547941483,2.5395,2513.6,2513.5,0.79546]
[1747547941779,2.5395,2513.6,2513.4,0.79547]
[1747547942273,2.5395,2513.6,2513.1,1.2649]
[1747547942474,2.5395,2513.6,2513.4,0.79548]
[1747547943081,2.5395,2513.6,2513.5,0.79546]
[1747547944177,2.5395,2513.6,2513.3,1.2649]
[1747547944373,3.2078,2513.5,2513.3,0.79549]
[1747547944570,1.3621,2513.4,2513.1,1.2747]
[1747547944876,1.3621,2513.4,2513.3,0.79552]
[1747547950992,1.2855,2513.6,2513.5,0.79546]
[1747547951282,1.9269,2513.6,2513.5,0.79546]
[1747547951583,1.9269,2513.6,2513.2,3.2078]
[1747547951785,1.9269,2513.6,2513.3,0.79551]
[1747547952074,2.72235,2513.6,2513.3,0.79551]
[1747547952480,2.72235,2513.6,2513.2,3.2078]
[1747547953170,2.72235,2513.6,2513.4,0.79548]
[1747547953576,1.9269,2513.6,2513.5,0.79546]
[1747547954184,2.72233,2513.6,2513.5,0.79546]
[1747547954383,1.9269,2513.6,2513.5,0.79546]
[1747547954581,3.2078,2513.9,2513.3,1.3499]
[1747547954788,4.00314,2513.9,2513.4,0.6237]
[1747547954979,2.16606,2513.8,2513.5,1.3499]
[1747547955283,2.16606,2513.8,2513.6,0.7954]
[1747547956183,2.16606,2513.8,2513.5,1.3499]
[1747547956184,0.79539,2513.7,2513.5,0.79545]
[1747547956384,1.3707,2513.6,2513.5,0.79545]
[1747547957088,3.2078,2513.9,2513.4,1.9299]
[1747547957276,3.2078,2513.9,2513.8,0.79536]
[1747547957880,4.5024,2513.9,2513.8,0.79536]
[1747547958183,1.2946,2513.9,2513.8,0.79536]
[1747547958584,1.2946,2513.9,2513.8,2.10156]
[1747547959582,0.6443,2514.0,2513.9,0.79533]
[1747547959785,0.6443,2514.0,2513.9,2.07123]
[1747547960286,3.93251839,2514.9,2513.9,23.5689]
[1747547960487,1.9287,2514.8,2514.0,3.8672]
[1747547960690,0.79525,2514.2,2514.0,17.9494]
[1747547960884,1.243,2514.1,2514.0,0.6594]
[1747547961089,2.03827,2514.1,2514.0,0.6594]
[1747547961289,1.243,2514.1,2514.0,0.6594]
[1747547961790,1.9287,2514.1,2514.0,0.6594]
[1747547962092,1.9287,2514.1,2514.0,1.4547]
[1747547962389,1.9287,2514.1,2514.0,0.6594]
[1747547962577,1.9287,2514.1,2514.0,1.4547]
[1747547962782,1.9287,2514.1,2513.6,17.9006]
[1747547962983,1.9287,2514.1,2514.0,0.7953]
[1747547963883,3.2078,2514.4,2514.3,0.7952]
[1747547964491,4.4462,2514.4,2514.3,0.7952]
[1747547964994,1.2384,2514.4,2514.3,0.7952]
[1747547965389,0.678,2514.5,2514.4,0.79517]
[1747547966185,1.2384,2514.6,2514.3,4.5446]
[1747547966390,2.03351,2514.6,2514.3,5.33979]
[1747547966586,0.79517,2514.4,2514.3,3.2078]
[1747547967285,2.06727,2514.4,2514.3,3.2078]
[1747547968186,0.7952,2514.3,2514.0,0.79528]
[1747547968387,1.9564,2514.2,2514.1,0.79527]
[1747547969895,0.79521,2514.3,2514.1,0.79527]
[1747547970089,3.2078,2514.7,2514.1,19.28618]
[1747547970287,1.2937,2514.6,2514.5,0.79514]
[1747547971291,1.2937,2514.6,2514.3,0.79518]
[1747547971597,1.46676,2514.5,2514.3,0.79518]
[1747547971892,0.79522,2514.3,2514.0,0.79527]
[1747547972189,2.0071,2514.2,2513.7,4.00318]
[1747547972395,3.2078,2513.9,2513.6,3.95500826]
[1747547972593,2.0432,2513.8,2513.6,3.95500826]
[1747547972792,0.79539,2513.7,2513.6,1.17139826]
[1747547972984,2.80249,2513.7,2513.6,1.17139826]
[1747547974193,0.79543,2513.6,2513.4,0.79549]
[1747547974389,1.3716,2513.5,2513.4,0.79549]
[1747547975895,1.3716,2513.5,2513.2,1.9882]
[1747547976094,1.3716,2513.5,2513.3,0.79551]
[1747547976503,2.16706,2513.5,2513.3,0.79551]
[1747547976692,0.79549,2513.4,2513.2,0.6387]
[1747547976902,1.978,2513.3,2513.2,0.6387]
[1747547977394,2.77352,2513.3,2513.0,0.7956]
[1747547977890,2.77352,2513.3,2512.9,1.45143]
[1747547978089,2.77352,2513.3,2512.9,5.79953]
[1747547978297,0.6558,2513.2,2513.0,0.79561]
[1747547978498,1.274,2513.1,2513.0,0.79561]
[1747547978798,0.79562,2513.0,2512.9,3.058]
[1747547979195,1.274,2513.1,2512.8,1.17139826]
[1747547979196,0.79565,2512.9,2512.8,1.17139826]
[1747547979696,0.79564,2513.0,2512.8,1.17139826]
[1747547979999,2.06965,2512.9,2512.8,1.17139826]
[1747547980189,2.06965,2512.9,2512.7,0.7957]
[1747547980190,1.274,2512.9,2512.7,0.7957]
[1747547980392,0.6212,2512.8,2512.7,0.7957]
[1747547980597,3.2078,2513.5,2512.7,3.2078]
[1747547980798,2.08294,2513.3,2513.0,0.79559]
[1747547981092,2.08294,2513.3,2513.1,0.79557]
[1747547981602,1.2874,2513.3,2513.0,0.7956]
[1747547981901,2.08293,2513.3,2513.0,0.7956]
[1747547982398,1.2874,2513.3,2512.8,0.79565]
[1747547982599,3.2078,2513.2,2512.6,1.44593]
[1747547982798,1.2874,2513.1,2512.6,0.6502]
[1747547982994,0.79567,2512.9,2512.6,1.44593]
[1747547983201,1.9597,2512.8,2512.6,1.44593]
[1747547983400,2.626,2512.8,2512.6,1.44593]
[1747547983600,2.626,2512.8,2512.6,0.79573]
[1747547984002,2.626,2512.8,2512.7,0.79571]
[1747547984702,1.9597,2512.8,2512.7,0.79571]
[1747547985696,1.9597,2512.8,2512.7,2.07651]
[1747547986097,1.9597,2512.8,2512.6,3.85372]
[1747547986805,1.9597,2512.8,2512.7,0.79571]
[1747547987497,0.79556,2513.2,2512.9,0.79563]
[1747547987907,1.3001,2513.1,2512.9,0.79563]
[1747547988099,1.3001,2513.1,2513.0,0.79562]
[1747547988806,1.3001,2513.1,2512.9,1.3388]
[1747547989007,1.3001,2513.1,2513.0,0.79562]
[1747547990303,0.6429,2513.3,2512.9,1.3388]
[1747547990506,2.0134,2513.3,2513.1,0.79557]
[1747547990707,2.0134,2513.3,2512.9,1.3388]
[1747547991005,2.0134,2513.3,2513.1,0.79556]
[1747547991205,2.0134,2513.3,2512.9,1.3388]
[1747547991707,2.0134,2513.3,2513.2,0.79555]
[1747547993307,3.2078,2513.5,2512.9,1.3388]
[1747547993605,1.9591,2513.4,2513.3,0.79552]
[1747547994197,1.9591,2513.4,2513.3,3.85352]
[1747547995604,2.75459,2513.4,2513.3,3.058]
[1747547996211,2.75459,2513.4,2513.2,0.79555]
[1747547997009,0.79552,2513.3,2513.1,0.79557]
[1747547997214,1.304,2513.2,2513.1,0.79557]
[1747547997612,0.7956,2513.1,2512.9,0.79563]
[1747547997908,1.304,2513.0,2512.9,0.79563]
[1747547998112,2.09963,2513.0,2512.8,0.79567]
[1747547998297,0.6536,2512.9,2512.8,0.79567]
[1747547998498,1.9576,2512.9,2512.8,0.79567]
[1747547999213,1.9576,2512.9,2512.8,2.03907]
[1747547999813,1.9576,2512.9,2512.8,1.2434]
[1747548000108,1.9576,2512.9,2512.7,4.0035]
[1747548000411,1.9576,2512.9,2512.8,0.79568]
[1747548000602,3.2078,2513.2,2512.7,4.4512]
[1747548000804,3.2078,2513.2,2512.7,4.0035]
[1747548001007,2.6579,2513.1,2512.6,1.17840763]
[1747548001312,2.6579,2513.1,2512.7,0.79569]
[1747548001313,0.79563,2513.0,2512.7,0.79569]
[1747548001511,1.3295,2512.9,2512.8,0.79568]
[1747548001807,0.6497,2513.1,2513.0,0.79562]
[1747548002012,4.5578,2513.2,2513.1,0.79558]
[1747548002715,3.2078,2513.2,2513.1,2.08368]
[1747548003013,3.2078,2514.2,2513.3,1.98879]
[1747548003199,2.6302,2514.1,2514.0,0.7953]
[1747548003401,1.992,2514.1,2513.7,17.359]
[1747548003604,1.992,2514.1,2513.6,1.9084]
[1747548003605,1.98826,2514.0,2513.1,20.5898]
[1747548003805,1.35,2513.9,2513.1,21.8779]
[1747548004000,1.35,2513.9,2513.4,3.2078]
[1747548004217,3.8498,2514.1,2513.9,0.79531]
[1747548004408,5.1998,2514.1,2514.0,1.2881]
[1747548004609,3.93251839,2514.3,2514.0,2.08338]
[1747548004804,2.78726,2514.2,2513.9,3.2078]
[1747548005010,1.992,2514.2,2513.6,1.2881]
[1747548005211,1.992,2514.2,2513.6,18.6841]
[1747548005507,1.992,2514.2,2513.8,0.79535]
[1747548005702,1.992,2514.2,2513.6,18.6841]
[1747548005909,1.992,2514.2,2514.0,0.7953]
[1747548006311,1.992,2514.2,2513.9,0.79532]
[1747548006312,2.78724,2514.2,2513.9,0.79532]
[1747548007314,1.992,2514.2,2513.9,0.79531]
[1747548007510,1.992,2514.2,2514.0,0.79529]
[1747548007712,0.79527,2514.1,2513.8,2.72594]
[1747548008016,1.3059,2514.1,2513.9,0.79531]
[1747548008217,1.3059,2514.1,2514.0,0.7953]
[1747548009316,1.3059,2514.1,2514.0,3.8533]
[1747548009719,1.3059,2514.1,2514.0,3.058]
[1747548009913,2.10117,2514.1,2514.0,3.058]
[1747548010115,1.3059,2514.1,2513.5,0.6692]
[1747548010317,0.79546,2513.5,2513.4,1.17139826]
[1747548010818,2.83045,2513.6,2513.4,1.17139826]
[1747548011416,3.2078,2513.7,2513.5,0.79545]
[1747548011611,0.79542,2513.7,2513.4,2.63457826]
[1747548011915,1.2493,2513.8,2513.5,0.79546]
[1747548011916,1.2493,2513.6,2513.5,0.79546]
[1747548012507,1.2493,2513.6,2513.5,2.05976]
[1747548012709,1.2493,2513.6,2513.4,1.46316]
[1747548013113,0.6315,2513.5,2513.4,1.46316]
[1747548013719,0.6315,2513.5,2513.3,3.058]
[1747548013913,2.04479,2513.4,2513.3,3.058]
[1747548014111,2.04479,2513.4,2513.1,4.00337]
[1747548014616,1.2493,2513.4,2513.1,3.2078]
[1747548014817,1.2493,2513.4,2513.3,0.79552]
[1747548015117,2.04479,2513.4,2513.2,2.03463]
[1747548015319,1.2493,2513.4,2513.3,0.79552]
[1747548015523,1.2493,2513.4,2513.1,3.8383]
[1747548015524,1.2493,2513.4,2513.1,3.2078]
[1747548015820,0.79555,2513.2,2513.1,3.2078]
[1747548016222,1.2493,2513.4,2513.1,4.00337]
[1747548016424,1.2493,2513.4,2513.3,0.79552]
[1747548019131,1.2493,2513.4,2513.1,3.2078]
[1747548019615,0.7956,2513.1,2512.9,0.6865]
[1747548019820,1.9191,2513.0,2512.9,1.48215]
[1747548021121,1.9191,2513.0,2512.9,0.6865]
[1747548021318,1.9191,2513.0,2512.7,5.17489826]
[1747548021621,2.71474,2513.0,2512.7,5.17489826]
[1747548021925,2.71474,2513.0,2512.7,4.0035]
[1747548022121,2.71474,2513.0,2512.7,3.2078]
[1747548022525,1.9191,2513.0,2512.8,0.79566]
[1747548022726,1.9191,2513.0,2512.7,4.0035]
[1747548023025,2.71473,2513.0,2512.7,4.0035]
[1747548023226,2.71473,2513.0,2512.8,0.79568]
[1747548023523,1.9191,2513.0,2512.8,0.79568]
[1747548023727,2.71472,2513.0,2512.8,0.79568]
[1747548024122,1.9191,2513.0,2512.7,3.2078]
[1747548024329,1.9191,2513.0,2512.9,0.79565]
[1747548024525,0.79565,2512.9,2512.7,3.2078]
[1747548024719,2.13178,2512.8,2512.7,3.2078]
[1747548025021,1.3361,2512.8,2512.5,1.17139826]
[1747548025229,0.79574,2512.6,2512.5,1.17139826]
[1747548025619,0.79577,2512.5,2512.4,3.2078]
[1747548025820,0.79584,2512.3,2512.2,1.17139826]
[1747548026329,4.00364,2512.3,2512.2,1.17139826]
[1747548027226,7.06164,2512.3,2512.2,1.17139826]
[1747548027823,12.06164,2512.3,2512.2,1.17139826]
[1747548028731,11.2658,2512.3,2511.7,0.79601]
[1747548028932,4.00375,2512.0,2511.7,0.79601]
[1747548029228,2.6763,2511.9,2511.7,0.79601]
[1747548029730,3.47228,2511.9,2511.6,0.79603]
[1747548030131,2.6763,2511.9,2511.7,0.79602]
[1747548030333,2.6763,2511.9,2511.6,0.79604]
[1747548030532,0.796,2511.8,2511.6,0.79604]
[1747548030831,0.796,2511.8,2511.5,5.1535]
[1747548030832,2.16013,2511.7,2511.5,4.66627]
[1747548031031,0.79606,2511.6,2511.5,3.1837]
[1747548031233,0.79611,2511.5,2511.2,5.16905293]
[1747548031440,1.3641,2511.4,2511.2,4.37288293]
[1747548031621,1.45315,2511.3,2511.2,3.2078]
[1747548031929,0.79622,2511.2,2510.9,0.79626]
[1747548032131,0.79622,2511.1,2510.8,1.2936]
[1747548032430,1.3641,2511.0,2510.9,0.79627]
[1747548032630,1.3641,2511.0,2510.8,2.08989]
[1747548033630,1.3641,2511.0,2510.8,1.2936]
[1747548033829,2.16036,2511.0,2510.7,1.96770826]
[1747548034027,2.16036,2511.0,2510.8,0.79631]
[1747548034229,1.3641,2511.0,2510.8,0.79631]
[1747548034437,1.3641,2511.0,2510.9,0.79628]
[1747548034638,0.657,2511.3,2510.8,1.2965]
[1747548034934,1.2472,2511.2,2511.1,0.79622]
[1747548036641,0.79622,2511.1,2511.0,3.058]
[1747548037142,0.79622,2511.1,2510.9,3.2078]
[1747548037344,1.255,2511.0,2510.9,3.2078]
[1747548038041,2.05125,2511.0,2510.9,3.2078]
[1747548039148,1.255,2511.0,2510.9,4.00408]
[1747548040438,2.05125,2511.0,2510.9,3.2078]
[1747548040842,1.255,2511.0,2510.9,4.00408]
[1747548041047,1.255,2511.0,2510.9,0.79628]
[1747548042136,1.255,2511.0,2509.5,9.852]
[1747548042343,3.2078,2509.4,2508.5,1.32105826]
[1747548042546,3.8506,2509.3,2508.5,1.32105826]
[1747548042740,0.79698,2508.7,2508.6,1.89188828]
[1747548042945,0.79701,2508.6,2508.5,1.32105826]
[1747548043144,3.2078,2508.8,2508.7,1.89188828]
[1747548043347,3.2078,2508.8,2508.5,1.32105826]
[1747548043542,0.79701,2508.7,2508.5,3.21294654]
[1747548043745,3.2078,2508.8,2508.5,1.32105826]
[1747548043746,0.79701,2508.6,2508.5,1.32105826]
[1747548045153,3.85501,2508.6,2508.5,1.32105826]
[1747548045654,5.15331,2508.6,2508.5,1.32105826]
[1747548046246,2.09531,2508.6,2508.5,1.32105826]
[1747548048149,5.15331,2508.6,2508.5,1.32105826]
[1747548048351,5.15331,2508.6,2508.5,3.21294654]
[1747548048849,11.34885,2508.6,2507.6,3.2078]
[1747548049054,4.00498,2508.1,2507.7,2.12918]
[1747548049253,4.00498,2508.1,2507.8,1.3319]
[1747548049457,3.2078,2508.1,2507.8,1.3319]
[1747548050253,3.2078,2508.1,2507.8,4.3899]
[1747548050453,0.79723,2507.9,2507.8,3.058]
[1747548051255,0.79727,2507.8,2507.7,1.2649]
[1747548051756,0.79725,2507.9,2507.7,1.2649]
[1747548051957,1.374,2508.0,2507.7,1.2649]
[1747548052158,0.79724,2507.9,2507.7,1.2649]
[1747548052544,1.374,2508.0,2507.7,1.2649]
[1747548052750,1.374,2508.0,2507.7,2.0622]
[1747548053050,2.17123,2508.0,2507.7,1.2649]
[1747548053255,4.00499,2508.1,2507.8,1.2649]
[1747548053455,3.2078,2508.1,2507.9,0.79722]
[1747548053658,3.2078,2508.4,2508.0,1.3665]
[1747548053857,0.79715,2508.2,2508.0,1.3665]
[1747548054156,0.79715,2508.2,2508.0,4.4245]
[1747548054358,4.4878,2508.4,2508.0,4.4245]
[1747548054558,0.79715,2508.2,2508.0,4.4245]
[1747548054755,3.2078,2508.1,2508.0,4.4245]
[1747548055957,4.4878,2508.4,2508.0,5.2217]
[1747548056160,3.2078,2508.7,2508.5,0.09218003]
[1747548056466,4.00479,2508.7,2508.6,1.3665]
[1747548056753,3.2078,2508.7,2508.6,2.16351]
[1747548056949,3.2078,2508.7,2508.6,7.16351]
[1747548057756,2.16503,2509.2,2508.9,0.79691]
[1747548057962,3.2078,2509.3,2509.0,1.2717]
[1747548058256,3.2078,2509.5,2509.0,5.5170349]
[1747548058451,1.3682,2509.4,2509.0,1.2717]
[1747548059048,1.3682,2509.4,2509.1,0.79685]
[1747548059253,1.3682,2509.4,2509.2,1.2717]
[1747548059465,1.3682,2509.4,2509.2,2.0685]
[1747548059663,0.79671,2509.6,2509.3,0.79679]
[1747548059869,0.79671,2509.6,2509.4,1.3178]
[1747548060359,0.79671,2509.6,2509.4,4.3758]
[1747548060661,3.2078,2509.5,2509.4,4.3758]
[1747548060962,4.00453,2509.5,2509.4,4.3758]
[1747548061264,1.3171,2509.7,2509.5,0.79671]
[1747548061464,1.3171,2509.7,2509.6,1.3178]
[1747548061764,3.2078,2509.8,2509.6,2.11448]
[1747548062166,3.2078,2509.8,2509.7,1.3178]
[1747548062667,0.79663,2509.8,2509.7,1.3178]
[1747548062962,1.3171,2510.0,2509.7,1.3178]
[1747548063161,2.11367,2510.0,2509.7,2.11445]
[1747548063562,1.3171,2510.0,2509.8,1.3739]
[1747548063965,2.11368,2510.0,2509.8,1.3739]
[1747548064262,2.11368,2510.0,2509.8,4.4319]
[1747548064667,1.3171,2510.0,2509.8,5.22852]
[1747548064868,4.00436,2510.1,2509.8,5.22852]
[1747548065064,3.2078,2510.1,2509.9,0.79658]
[1747548065366,4.00434,2510.1,2510.0,1.3739]
[1747548066066,3.2078,2510.1,2510.0,1.3739]
[1747548066367,3.2078,2510.1,2510.0,4.4319]
[1747548066669,3.2078,2510.1,2510.0,5.22847]
[1747548068273,3.2078,2510.1,2510.0,10.22847]
[1747548068770,3.2078,2510.1,2510.0,5.22847]
[1747548069468,3.2078,2510.4,2510.2,0.7965]
[1747548069774,1.3379,2510.6,2510.4,0.79642]
[1747548069970,2.13428,2510.6,2510.5,1.3226]
[1747548071164,2.13428,2510.6,2510.5,4.3806]
[1747548071566,3.2078,2510.7,2510.5,4.3806]
[1747548071762,0.79638,2510.6,2510.5,4.3806]
[1747548071975,0.79638,2510.6,2510.5,3.058]
[1747548072170,2.12548,2510.6,2510.3,0.79645]
[1747548072371,2.12549,2510.6,2510.4,0.79644]
[1747548072674,1.3291,2510.6,2510.5,1.2412]
[1747548072876,3.2078,2510.7,2510.5,1.2412]
[1747548073071,3.8753,2511.0,2510.8,0.79629]
[1747548073267,3.8753,2511.0,2510.5,13.3622]
[1747548073575,3.8753,2511.0,2510.8,0.79629]
[1747548073778,3.2078,2511.0,2510.9,2.03748]
[1747548074377,3.2078,2511.0,2510.9,5.09548]
[1747548074578,3.2078,2511.0,2510.9,4.2992]
[1747548074778,5.33315,2511.0,2510.9,4.2992]
[1747548075275,5.33315,2511.0,2510.9,3.058]
[1747548075780,9.5369,2511.0,2510.1,18.097]
[1747548075981,0.79648,2510.3,2510.1,18.89352]
[1747548076480,1.3346,2510.4,2510.3,0.79647]
[1747548076681,1.3346,2510.4,2510.2,1.3305]
[1747548076874,1.3346,2510.4,2510.3,0.79647]
[1747548078280,1.3346,2510.4,2510.3,3.85447]
[1747548078671,1.3346,2510.4,2510.3,3.058]
[1747548079178,2.13104,2510.4,2510.3,3.058]
[1747548080185,0.79657,2510.0,2509.9,1.3095]
[1747548081171,0.79664,2509.8,2509.6,18.074]
[1747548081976,0.79664,2509.8,2509.6,18.87068]
[1747548082177,2.07642,2509.9,2509.6,18.87068]
[1747548082888,1.2798,2509.9,2509.7,0.79666]
[1747548083387,1.2798,2509.9,2509.7,2.16306]
[1747548083587,2.0764,2509.9,2509.7,2.16306]
[1747548084675,0.79663,2509.8,2509.7,1.3664]
[1747548084882,2.14763,2509.8,2509.7,1.3664]
[1747548085789,1.351,2509.8,2509.7,1.3664]
[1747548086489,1.351,2509.8,2509.5,3.058]
[1747548086785,4.00449,2509.6,2509.5,3.058]
[1747548087183,4.00449,2509.6,2509.2,1.06076401]
[1747548087184,0.79679,2509.3,2509.2,1.06076401]
[1747548087684,4.00459,2509.3,2509.2,1.06076401]
[1747548087991,0.79686,2509.1,2508.9,1.3505]
[1747548088188,1.315,2509.2,2508.9,1.3505]
[1747548088387,0.79692,2508.9,2508.8,1.55529748]